lending/lending_fUSD_20250425
["ID","MTS","AMOUNT","RATE_DAILY","PERIOD"]
[358988576,1745610645289,-500.0,0.00027397,2]
[358988577,1745610645300,-500.0,0.00027397,2]
[358988578,1745610645310,-913.49,0.00027397,2]
[358988579,1745610645322,-511.51689646,0.00027397,2]
[358988580,1745610645331,-1049.0,0.00027397,2]
[358988581,1745610645342,-500.0,0.00027397,2]
[358988582,1745610645352,-500.0,0.00027397,2]
[358988583,1745610645362,-500.0,0.00027397,2]
[358988584,1745610645371,-500.0,0.00027397,2]
[358988585,1745610645385,-151.0,0.00027397,7]
[358988586,1745610645395,-151.0,0.00027397,7]
[358988587,1745610645406,-500.0,0.00027397,2]
[358988588,1745610645415,-500.0,0.00027397,2]
[358988589,1745610645426,-500.0,0.00027397,2]
[358988590,1745610645436,-500.0,0.00027397,2]
[358988591,1745610645447,-500.0,0.00027397,2]
[358988592,1745610645457,-500.0,0.00027397,2]
[358988593,1745610645468,-500.0,0.00027397,2]
[358988594,1745610645478,-500.0,0.00027397,2]
[358988595,1745610645489,-500.0,0.00027397,2]
[358988596,1745610645499,-500.0,0.00027397,2]
[358988597,1745610645510,-500.0,0.00027397,2]
[358988598,1745610645519,-469.22,0.00027397,2]
[358988599,1745610645530,-942.99,0.00027397,2]
[358988600,1745610645540,-500.0,0.00027397,2]
[358988601,1745610645551,-838.2,0.00027397,2]
[358988602,1745610645561,-389.41034668,0.00027397,2]
[358988603,1745610645571,-500.0,0.00027397,2]
[358988604,1745610645581,-500.0,0.00027397,2]
[358988605,1745610645591,-660.63,0.00027397,2]
[358988606,1745610645601,-500.0,0.00027397,2]
[358988607,1745610645611,-870.25,0.00027397,2]
[358988608,1745610645620,-500.0,0.00027397,2]
[358988609,1745610645630,-500.0,0.00027397,2]
[358988610,1745610645640,-500.0,0.00027397,2]
[358988611,1745610645649,-817.71,0.00027397,2]
[358988612,1745610645659,-500.0,0.00027397,2]
[358988613,1745610645669,-500.0,0.00027397,2]
[358988614,1745610645679,-500.0,0.00027397,2]
[358988615,1745610645689,-567.5,0.00027397,2]
[358988617,1745610645698,-500.0,0.00027397,2]
[358988619,1745610645708,-449.53899876,0.00027397,2]
[358988620,1745610645718,-500.0,0.00027397,2]
[358988621,1745610645727,-500.0,0.00027397,2]
[358988622,1745610645737,-500.0,0.00027397,2]
[358988623,1745610645747,-500.0,0.00027397,2]
[358988624,1745610645758,-812.78,0.00027397,2]
[358988625,1745610645767,-607.31312222,0.00027397,2]
[358988626,1745610645778,-500.0,0.00027397,2]
[358988627,1745610645788,-500.0,0.00027397,2]
[358988628,1745610645798,-500.0,0.00027397,2]
[358988629,1745610645808,-500.0,0.00027397,2]
[358988630,1745610645817,-500.0,0.00027397,2]
[358988631,1745610645827,-658.8,0.00027397,2]
[358988632,1745610645838,-500.0,0.00027397,2]
[358988633,1745610645848,-647.26,0.00027397,2]
[358988634,1745610645858,-500.0,0.00027397,2]
[358988635,1745610645870,-649.81,0.00027397,2]
[358988636,1745610645880,-500.0,0.00027397,2]
[358988637,1745610645891,-500.0,0.00027397,2]
[358988638,1745610645902,-874.44,0.00027397,2]
[358988639,1745610645912,-500.0,0.00027397,2]
[358988640,1745610645922,-687.1,0.00027397,2]
[358988641,1745610645932,-189.12709591,0.00027397,2]
[358988642,1745610645943,-197.963717,0.00027397,7]
[358988643,1745610645953,-197.963717,0.00027397,7]
[358988644,1745610645963,-569.44235461,0.00027397,2]
[358988645,1745610645974,-568.10583732,0.00027397,2]
[358988646,1745610645983,-500.0,0.00027397,2]
[358988647,1745610645993,-500.0,0.00027397,2]
[358988648,1745610646003,-831.29,0.00027397,2]
[358988649,1745610646012,-500.0,0.00027397,2]
[358988650,1745610646022,-197.963717,0.00027397,7]
[358988651,1745610646032,-500.0,0.00027397,2]
[358988652,1745610646041,-197.963717,0.00027397,7]
[358988653,1745610646051,-500.0,0.00027397,2]
[358988654,1745610646061,-500.0,0.00027397,2]
[358988655,1745610646070,-500.0,0.00027397,2]
[358988656,1745610646080,-500.0,0.00027397,2]
[358988657,1745610646090,-500.0,0.00027397,2]
[358988658,1745610646099,-500.0,0.00027397,2]
[358988659,1745610646108,-856.86,0.00027397,2]
[358988660,1745610646118,-500.0,0.00027397,2]
[358988661,1745610646128,-500.0,0.00027397,2]
[358988662,1745610646137,-614.01,0.00027397,2]
[358988663,1745610646146,-581.64628648,0.00027397,2]
[358988664,1745610646156,-500.0,0.00027397,2]
[358988665,1745610646165,-500.0,0.00027397,2]
[358988666,1745610646175,-575.41037431,0.00027397,2]
[358988667,1745610646186,-509.67879043,0.00027397,2]
[358988668,1745610646196,-500.0,0.00027397,2]
[358988669,1745610646207,-500.0,0.00027397,2]
[358988670,1745610646218,-272.620426,0.00027397,7]
[358988671,1745610646230,-500.0,0.00027397,2]
[358988672,1745610646240,-272.620426,0.00027397,7]
[358988673,1745610646252,-500.0,0.00027397,2]
[358988674,1745610646262,-500.0,0.00027397,2]
[358988675,1745610646272,-500.0,0.00027397,2]
[358988676,1745610646283,-500.0,0.00027397,2]
[358988677,1745610646294,-500.0,0.00027397,2]
[358988678,1745610646304,-500.0,0.00027397,2]
[358988679,1745610646315,-500.0,0.00027397,2]
[358988680,1745610646325,-272.620426,0.00027397,7]
[358988681,1745610646336,-272.620426,0.00027397,7]
[358988682,1745610646346,-500.0,0.00027397,2]
[358988683,1745610646358,-500.0,0.00027397,2]
[358988684,1745610646369,-732.51,0.00027397,2]
[358988685,1745610646379,-627.74,0.00027397,2]
[358988686,1745610646392,-500.0,0.00027397,2]
[358988687,1745610646403,-500.0,0.00027397,2]
[358988688,1745610646413,-500.0,0.00027397,2]
[358988689,1745610646423,-943.92,0.00027397,2]
[358988690,1745610646435,-500.0,0.00027397,2]
[358988691,1745610646446,-500.0,0.00027397,2]
[358988692,1745610646456,-585.14,0.00027397,2]
[358988693,1745610646468,-500.0,0.00027397,2]
[358988694,1745610646479,-550.1608548,0.00027397,2]
[358988695,1745610646490,-500.0,0.00027397,2]
[358988696,1745610646502,-500.0,0.00027397,2]
[358988697,1745610646512,-500.0,0.00027397,2]
[358988698,1745610646523,-500.0,0.00027397,2]
[358988699,1745610646533,-500.0,0.00027397,2]
[358988700,1745610646543,-554.66254026,0.00027397,2]
[358988701,1745610646556,-500.0,0.00027397,2]
[358988702,1745610646566,-500.0,0.00027397,2]
[358988703,1745610646577,-353.77135876,0.00027397,2]
[358988704,1745610646588,-776.96,0.00027397,2]
[358988705,1745610646599,-500.0,0.00027397,2]
[358988706,1745610646610,-619.7,0.00027397,2]
[358988707,1745610646620,-500.0,0.00027397,2]
[358988708,1745610646631,-500.0,0.00027397,2]
[358988709,1745610646641,-692.11,0.00027397,2]
[358988710,1745610646651,-724.4,0.00027397,2]
[358988711,1745610646662,-500.0,0.00027397,2]
[358988712,1745610646671,-151.0,0.00027397,7]
[358988713,1745610646683,-151.0,0.00027397,7]
[358988714,1745610646694,-151.0,0.00027397,7]
[358988715,1745610646707,-500.0,0.00027397,2]
[358988716,1745610646716,-500.0,0.00027397,2]
[358988717,1745610646728,-686.38,0.00027397,2]
[358988718,1745610646739,-733.4,0.00027397,2]
[358988719,1745610646749,-500.0,0.00027397,2]
[358988720,1745610646759,-500.0,0.00027397,2]
[358988721,1745610646769,-500.0,0.00027397,2]
[358988722,1745610646781,-526.5,0.00027397,2]
[358988723,1745610646792,-697.19,0.00027397,2]
[358988724,1745610646803,-500.0,0.00027397,2]
[358988725,1745610646812,-500.0,0.00027397,2]
[358988726,1745610646823,-151.0,0.00027397,7]
[358988727,1745610646833,-156.489089,0.00027397,7]
[358988728,1745610646844,-500.0,0.00027397,2]
[358988729,1745610646854,-500.0,0.00027397,2]
[358988730,1745610646864,-527.09,0.00027397,2]
[358988731,1745610646874,-500.0,0.00027397,2]
[358988732,1745610646884,-514.56342934,0.00027397,2]
[358988733,1745610646895,-945.87,0.00027397,2]
[358988734,1745610646906,-500.0,0.00027397,2]
[358988735,1745610646916,-507.22,0.00027397,2]
[358988736,1745610646927,-916.29,0.00027397,2]
[358988737,1745610646937,-151.0,0.00027397,7]
[358988738,1745610646947,-500.0,0.00027397,2]
[358988739,1745610646957,-151.0,0.00027397,7]
[358988740,1745610646968,-500.0,0.00027397,2]
[358988741,1745610646979,-151.0,0.00027397,7]
[358988742,1745610646989,-500.0,0.00027397,2]
[358988743,1745610646999,-500.0,0.00027397,2]
[358988744,1745610647009,-544.83644034,0.00027397,2]
[358988745,1745610647019,-151.0,0.00027397,7]
[358988746,1745610647030,-151.0,0.00027397,7]
[358988747,1745610647040,-500.0,0.00027397,2]
[358988748,1745610647051,-222.34819597,0.00027397,7]
[358988749,1745610647062,-500.0,0.00027397,2]
[358988750,1745610647074,-589.78,0.00027397,2]
[358988751,1745610647084,-500.0,0.00027397,2]
[358988752,1745610647094,-769.67,0.00027397,2]
[358988753,1745610647104,-2521.62,0.00027397,2]
[358988754,1745610647114,-544.35980817,0.00027397,2]
[358988755,1745610647124,-500.0,0.00027397,2]
[358988756,1745610647134,-548.87511888,0.00027397,2]
[358988757,1745610647144,-151.0,0.00027397,7]
[358988758,1745610647154,-500.0,0.00027397,2]
[358988759,1745610647164,-545.03,0.00027397,2]
[358988760,1745610647174,-151.0,0.00027397,7]
[358988761,1745610647184,-151.0,0.00027397,7]
[358988762,1745610647195,-500.0,0.00027397,2]
[358988763,1745610647205,-500.0,0.00027397,2]
[358988764,1745610647215,-516.33929706,0.00027397,2]
[358988765,1745610647225,-500.0,0.00027397,2]
[358988766,1745610647235,-151.0,0.00027397,7]
[358988767,1745610647244,-500.0,0.00027397,2]
[358988768,1745610647254,-500.0,0.00027397,2]
[358988769,1745610647264,-253.014564,0.00027397,7]
[358988770,1745610647274,-500.0,0.00027397,2]
[358988771,1745610647285,-500.0,0.00027397,2]
[358988772,1745610647295,-5207.23,0.00027397,2]
[358988773,1745610647304,-500.0,0.00027397,2]
[358988774,1745610647315,-549.21664328,0.00027397,2]
[358988775,1745610647325,-893.71,0.00027397,2]
[358988776,1745610647335,-542.58,0.00027397,2]
[358988777,1745610647345,-151.0,0.00027397,7]
[358988778,1745610647356,-151.0,0.00027397,7]
[358988779,1745610647366,-500.0,0.00027397,2]
[358988780,1745610647376,-500.0,0.00027397,2]
[358988781,1745610647389,-500.0,0.00027397,2]
[358988782,1745610647399,-205.772265,0.00027397,7]
[358988783,1745610647409,-205.772265,0.00027397,7]
[358988784,1745610647420,-205.772265,0.00027397,7]
[358988785,1745610647431,-534.52215006,0.00027397,2]
[358988786,1745610647442,-573.13,0.00027397,2]
[358988787,1745610647452,-891.36,0.00027397,2]
[358988788,1745610647465,-500.0,0.00027397,2]
[358988789,1745610647475,-1000.0,0.00027397,2]
[358988790,1745610647485,-726.67,0.00027397,2]
[358988791,1745610647495,-500.0,0.00027397,2]
[358988792,1745610647505,-500.0,0.00027397,2]
[358988793,1745610647516,-500.0,0.00027397,2]
[358988794,1745610647526,-500.0,0.00027397,2]
[358988795,1745610647536,-597.35,0.00027397,2]
[358988796,1745610647546,-500.0,0.00027397,2]
[358988797,1745610647556,-728.05,0.00027397,2]
[358988798,1745610647567,-500.0,0.00027397,2]
[358988799,1745610647578,-205.772265,0.00027397,7]
[358988800,1745610647589,-500.0,0.00027397,2]
[358988801,1745610647599,-205.772265,0.00027397,7]
[358988802,1745610647609,-205.772265,0.00027397,7]
[358988803,1745610647620,-500.0,0.00027397,2]
[358988804,1745610647630,-500.0,0.00027397,2]
[358988805,1745610647640,-500.0,0.00027397,2]
[358988806,1745610647651,-500.0,0.00027397,2]
[358988807,1745610647661,-592.92,0.00027397,2]
[358988808,1745610647671,-588.79,0.00027397,2]
[358988809,1745610647682,-324.95,0.00027397,2]
[358988810,1745610647692,-500.0,0.00027397,2]
[358988811,1745610647704,-500.0,0.00027397,2]
[358988812,1745610647715,-632.14761317,0.00027397,2]
[358988813,1745610647725,-542.69729869,0.00027397,2]
[358988814,1745610647735,-500.0,0.00027397,2]
[358988815,1745610647746,-806.68,0.00027397,2]
[358988816,1745610647756,-500.0,0.00027397,2]
[358988817,1745610647766,-500.0,0.00027397,2]
[358988818,1745610647776,-500.0,0.00027397,2]
[358988819,1745610647786,-500.0,0.00027397,2]
[358988820,1745610647796,-588.55717694,0.00027397,2]
[358988821,1745610647807,-500.0,0.00027397,2]
[358988822,1745610647817,-500.0,0.00027397,2]
[358988823,1745610647828,-500.0,0.00027397,2]
[358988824,1745610647839,-500.0,0.00027397,2]
[358988825,1745610647849,-500.0,0.00027397,2]
[358988826,1745610647859,-512.28683793,0.00027397,2]
[358988827,1745610647870,-500.0,0.00027397,2]
[358988828,1745610647880,-500.0,0.00027397,2]
[358988829,1745610647891,-584.55058768,0.00027397,2]
[358988830,1745610647901,-672.84,0.00027397,2]
[358988831,1745610647912,-500.0,0.00027397,2]
[358988832,1745610647922,-500.0,0.00027397,2]
[358988833,1745610647934,-500.0,0.00027397,2]
[358988834,1745610647944,-500.0,0.00027397,2]
[358988835,1745610647954,-500.0,0.00027397,2]
[358988836,1745610647965,-500.0,0.00027397,2]
[358988837,1745610647975,-150.0,0.00027397,2]
[358988838,1745610647986,-774.49,0.00027397,2]
[358988839,1745610647997,-500.0,0.00027397,2]
[358988840,1745610648009,-500.0,0.00027397,2]
[358988841,1745610648020,-502.64,0.00027397,2]
[358988842,1745610648031,-500.0,0.00027397,2]
[358988843,1745610648042,-500.0,0.00027397,2]
[358988844,1745610648053,-1108.22,0.00027397,2]
[358988845,1745610648064,-518.69340176,0.00027397,2]
[358988846,1745610648078,-500.0,0.00027397,2]
[358988847,1745610648090,-907.53,0.00027397,2]
[358988848,1745610648104,-500.0,0.00027397,2]
[358988849,1745610648115,-850.19,0.00027397,2]
[358988850,1745610648126,-500.0,0.00027397,2]
[358988851,1745610648137,-500.0,0.00027397,2]
[358988852,1745610648147,-500.0,0.00027397,2]
[358988853,1745610648158,-500.0,0.00027397,2]
[358988854,1745610648169,-500.0,0.00027397,2]
[358988855,1745610648180,-1221.39,0.00027397,2]
[358988856,1745610648192,-3816.96,0.00027397,2]
[358988857,1745610648202,-589.31,0.00027397,2]
[358988858,1745610648214,-500.0,0.00027397,2]
[358988859,1745610648226,-500.0,0.00027397,2]
[358988860,1745610648237,-816.66,0.00027397,2]
[358988861,1745610648249,-723.1,0.00027397,2]
[358988862,1745610648260,-1661.327705,0.00027397,7]
[358988863,1745610648272,-1933.45,0.00027397,2]
[358988864,1745610648283,-1661.327705,0.00027397,7]
[358988865,1745610648294,-500.0,0.00027397,2]
[358988866,1745610648304,-1661.327705,0.00027397,7]
[358988867,1745610648316,-500.0,0.00027397,2]
[358988868,1745610648329,-500.0,0.00027397,2]
[358988869,1745610648339,-500.0,0.00027397,2]
[358988870,1745610648350,-528.69857189,0.00027397,2]
[358988871,1745610648361,-500.0,0.00027397,2]
[358988872,1745610648372,-963.31,0.00027397,2]
[358988873,1745610648384,-1661.327705,0.00027397,7]
[358988874,1745610648401,-1661.327705,0.00027397,7]
[358988875,1745610648412,-1661.327705,0.00027397,7]
[358988876,1745610648423,-500.0,0.00027397,2]
[358988877,1745610648434,-500.0,0.00027397,2]
[358988878,1745610648446,-500.0,0.00027397,2]
[358988879,1745610648457,-579.66,0.00027397,2]
[358988880,1745610648468,-500.0,0.00027397,2]
[358988881,1745610648479,-17001.41,0.00027397,2]
[358988882,1745610648489,-500.0,0.00027397,2]
[358988883,1745610648500,-528.97581744,0.00027397,2]
[358988884,1745610648511,-726.61,0.00027397,2]
[358988885,1745610648522,-1209.051041,0.00027397,7]
[358988886,1745610648533,-212.881037,0.00027397,7]
[358988887,1745610648543,-500.0,0.00027397,2]
[358988888,1745610648554,-500.0,0.00027397,2]
[358988889,1745610648564,-500.0,0.00027397,2]
[358988890,1745610648578,-541.7591672,0.00027397,2]
[358988891,1745610648588,-871.82,0.00027397,2]
[358988892,1745610648598,-1295.37,0.00027397,2]
[358988893,1745610648608,-500.0,0.00027397,2]
[358988894,1745610648619,-865.76,0.00027397,2]
[358988895,1745610648629,-500.0,0.00027397,2]
[358988896,1745610648640,-500.0,0.00027397,2]
[358988897,1745610648650,-500.0,0.00027397,2]
[358988898,1745610648660,-1209.051041,0.00027397,7]
[358988899,1745610648670,-1209.051041,0.00027397,7]
[358988900,1745610648681,-1209.051041,0.00027397,7]
[358988901,1745610648691,-704.54,0.00027397,2]
[358988902,1745610648702,-153.641164,0.00027397,7]
[358988903,1745610648712,-500.0,0.00027397,2]
[358988904,1745610648723,-500.0,0.00027397,2]
[358988905,1745610648734,-8864.74,0.00027397,2]
[358988906,1745610648745,-161.35701243,0.00027397,2]
[358988907,1745610648755,-500.0,0.00027397,2]
[358988908,1745610648766,-500.0,0.00027397,2]
[358988909,1745610648777,-500.0,0.00027397,2]
[358988910,1745610648788,-500.0,0.00027397,2]
[358988911,1745610648801,-572.06456765,0.00027397,2]
[358988912,1745610648812,-500.0,0.00027397,2]
[358988913,1745610648827,-754.41,0.00027397,2]
[358988914,1745610648838,-500.0,0.00027397,2]
[358988915,1745610648850,-841.29,0.00027397,2]
[358988916,1745610648862,-500.0,0.00027397,2]
[358988917,1745610648874,-151.0,0.00027397,7]
[358988918,1745610648885,-151.0,0.00027397,7]
[358988919,1745610648896,-535.02594011,0.00027397,2]
[358988920,1745610648908,-500.0,0.00027397,2]
[358988921,1745610648919,-500.0,0.00027397,2]
[358988922,1745610648932,-151.0,0.00027397,7]
[358988923,1745610648942,-151.0,0.00027397,7]
[358988924,1745610648953,-500.0,0.00027397,2]
[358988925,1745610648966,-500.0,0.00027397,2]
[358988926,1745610649280,-3397.95,0.00027397,2]
[358988927,1745610649290,-1096.7,0.00027397,2]
[358988928,1745610649301,-500.0,0.00027397,2]
[358988929,1745610649311,-500.0,0.00027397,2]
[358988930,1745610649324,-500.0,0.00027397,2]
[358988931,1745610649334,-500.0,0.00027397,2]
[358988932,1745610649345,-500.0,0.00027397,2]
[358988933,1745610649355,-763.85,0.00027397,2]
[358988934,1745610649366,-528.52887777,0.00027397,2]
[358988935,1745610649376,-500.0,0.00027397,2]
[358988936,1745610649388,-500.0,0.00027397,2]
[358988937,1745610649398,-798.76,0.00027397,2]
[358988938,1745610649407,-152.349765,0.00027397,7]
[358988939,1745610649417,-500.0,0.00027397,2]
[358988940,1745610649427,-500.0,0.00027397,2]
[358988941,1745610649438,-500.0,0.00027397,2]
[358988942,1745610649448,-152.338148,0.00027397,7]
[358988943,1745610649459,-500.0,0.00027397,2]
[358988944,1745610649470,-500.0,0.00027397,2]
[358988945,1745610649480,-594.94,0.00027397,2]
[358988946,1745610649490,-311.01182144,0.00027397,2]
[358988947,1745610649499,-500.0,0.00027397,2]
[358988948,1745610649510,-153.832905,0.00027397,7]
[358988949,1745610649520,-500.0,0.00027397,2]
[358988950,1745610649530,-500.0,0.00027397,2]
[358988951,1745610649540,-500.0,0.00027397,2]
[358988952,1745610649549,-500.0,0.00027397,2]
[358988953,1745610649559,-402.03054503,0.00027397,2]
[358988954,1745610649568,-500.0,0.00027397,2]
[358988955,1745610649581,-940.17,0.00027397,2]
[358988956,1745610649590,-500.0,0.00027397,2]
[358988957,1745610649600,-500.0,0.00027397,2]
[358988958,1745610649609,-500.0,0.00027397,2]
[358988959,1745610649618,-500.0,0.00027397,2]
[358988960,1745610649628,-500.0,0.00027397,2]
[358988961,1745610649638,-500.0,0.00027397,2]
[358988962,1745610649647,-500.0,0.00027397,2]
[358988963,1745610649657,-756.31,0.00027397,2]
[358988964,1745610649666,-500.0,0.00027397,2]
[358988965,1745610649675,-500.0,0.00027397,2]
[358988966,1745610649685,-790.79,0.00027397,2]
[358988967,1745610649695,-151.0,0.00027397,7]
[358988968,1745610649704,-500.0,0.00027397,2]
[358988969,1745610649714,-500.0,0.00027397,2]
[358988970,1745610649723,-897.35,0.00027397,2]
[358988971,1745610649733,-151.0,0.00027397,7]
[358988972,1745610649743,-151.0,0.00027397,7]
[358988973,1745610649753,-602.46,0.00027397,2]
[358988974,1745610649763,-650.3,0.00027397,2]
[358988975,1745610649773,-500.0,0.00027397,2]
[358988976,1745610649783,-500.0,0.00027397,2]
[358988977,1745610649793,-500.0,0.00027397,2]
[358988978,1745610649803,-447.14389582,0.00027397,2]
[358988979,1745610649813,-500.0,0.00027397,2]
[358988980,1745610649824,-500.0,0.00027397,2]
[358988981,1745610649834,-834.98,0.00027397,2]
[358988982,1745610649843,-500.0,0.00027397,2]
[358988983,1745610649853,-286.085468,0.00027397,2]
[358988984,1745610649862,-500.0,0.00027397,2]
[358988985,1745610649872,-286.085468,0.00027397,2]
[358988986,1745610649882,-152.404596,0.00027397,7]
[358988987,1745610649891,-300.0,0.00027397,2]
[358988988,1745610649901,-500.0,0.00027397,2]
[358988989,1745610649911,-500.0,0.00027397,2]
[358988990,1745610649921,-500.0,0.00027397,2]
[358988991,1745610649931,-286.085468,0.00027397,2]
[358988992,1745610649940,-616.47,0.00027397,2]
[358988993,1745610649950,-500.0,0.00027397,2]
[358988994,1745610649960,-286.085468,0.00027397,2]
[358988995,1745610649970,-500.0,0.00027397,2]
[358988996,1745610649980,-500.0,0.00027397,2]
[358988997,1745610649990,-500.0,0.00027397,2]
[358988998,1745610649999,-500.0,0.00027397,2]
[358988999,1745610650009,-903.49,0.00027397,2]
[358989000,1745610650019,-500.0,0.00027397,2]
[358989001,1745610650028,-986.86,0.00027397,2]
[358989002,1745610650038,-500.0,0.00027397,2]
[358989003,1745610650047,-500.0,0.00027397,2]
[358989004,1745610650058,-1031.27,0.00027397,2]
[358989005,1745610650068,-500.0,0.00027397,2]
[358989006,1745610650079,-828.2,0.00027397,2]
[358989007,1745610650089,-855.78,0.00027397,2]
[358989008,1745610650098,-1136.23,0.00027397,2]
[358989009,1745610650107,-4814.57,0.00027397,2]
[358989010,1745610650117,-500.0,0.00027397,2]
[358989011,1745610650127,-630.11,0.00027397,2]
[358989012,1745610650136,-500.0,0.00027397,2]
[358989013,1745610650146,-500.0,0.00027397,2]
[358989014,1745610650155,-691.13,0.00027397,2]
[358989015,1745610650166,-583.81,0.00027397,2]
[358989016,1745610650175,-603.88,0.00027397,2]
[358989017,1745610650184,-500.0,0.00027397,2]
[358989018,1745610650194,-500.0,0.00027397,2]
[358989019,1745610650203,-500.0,0.00027397,2]
[358989020,1745610650213,-500.0,0.00027397,2]
[358989021,1745610650223,-500.0,0.00027397,2]
[358989022,1745610650232,-505.4,0.00027397,2]
[358989023,1745610650242,-500.0,0.00027397,2]
[358989024,1745610650251,-500.0,0.00027397,2]
[358989025,1745610650261,-500.0,0.00027397,2]
[358989026,1745610650270,-151.0,0.00027397,7]
[358989027,1745610650280,-151.0,0.00027397,7]
[358989028,1745610650290,-500.0,0.00027397,2]
[358989029,1745610650299,-578.78133075,0.00027397,2]
[358989030,1745610650309,-500.0,0.00027397,2]
[358989031,1745610650318,-500.0,0.00027397,2]
[358989032,1745610650329,-500.0,0.00027397,2]
[358989033,1745610650339,-500.0,0.00027397,2]
[358989034,1745610650348,-500.0,0.00027397,2]
[358989035,1745610650358,-500.0,0.00027397,2]
[358989036,1745610650367,-500.0,0.00027397,2]
[358989037,1745610650377,-500.0,0.00027397,2]
[358989038,1745610650388,-500.0,0.00027397,2]
[358989039,1745610650398,-500.0,0.00027397,2]
[358989040,1745610650407,-500.0,0.00027397,2]
[358989041,1745610650416,-151.0,0.00027397,7]
[358989042,1745610650427,-500.0,0.00027397,2]
[358989043,1745610650437,-500.0,0.00027397,2]
[358989044,1745610650447,-151.0,0.00027397,7]
[358989045,1745610650456,-500.0,0.00027397,2]
[358989046,1745610650467,-500.0,0.00027397,2]
[358989047,1745610650477,-500.0,0.00027397,2]
[358989048,1745610650487,-500.0,0.00027397,2]
[358989049,1745610650497,-500.0,0.00027397,2]
[358989050,1745610650506,-497.22927234,0.00027397,2]
[358989051,1745610650516,-1084.29,0.00027397,2]
[358989052,1745610650526,-500.0,0.00027397,2]
[358989053,1745610650536,-500.0,0.00027397,2]
[358989054,1745610650545,-500.0,0.00027397,2]
[358989055,1745610650556,-1066.56,0.00027397,2]
[358989056,1745610650566,-500.0,0.00027397,2]
[358989057,1745610650575,-534.04,0.00027397,2]
[358989058,1745610650585,-151.0,0.00027397,7]
[358989059,1745610650595,-534.04,0.00027397,2]
[358989060,1745610650605,-534.04,0.00027397,2]
[358989061,1745610650615,-151.0,0.00027397,7]
[358989062,1745610650624,-515.8212016,0.00027397,2]
[358989063,1745610650635,-534.04,0.00027397,2]
[358989064,1745610650644,-534.04,0.00027397,2]
[358989065,1745610650654,-938.73,0.00027397,2]
[358989066,1745610650664,-534.04,0.00027397,2]
[358989067,1745610650675,-941.68,0.00027397,2]
[358989068,1745610650685,-534.04,0.00027397,2]
[358989069,1745610650695,-534.04,0.00027397,2]
[358989070,1745610650705,-151.0,0.00027397,7]
[358989071,1745610650717,-500.0,0.00027397,2]
[358989072,1745610650726,-500.0,0.00027397,2]
[358989073,1745610650736,-534.04,0.00027397,2]
[358989074,1745610650747,-534.04,0.00027397,2]
[358989075,1745610650756,-534.04,0.00027397,2]
[358989076,1745610650767,-534.04,0.00027397,2]
[358989077,1745610650776,-151.0,0.00027397,7]